[Event "European Womens-ch 2025"]
[Site "Rhodes"]
[Date "2025.04.01"]
[Round "2.50"]
[White "Terbe, Zsuzsanna"]
[Black "Valkova, Angelika"]
[Result "1/2-1/2"]
[Annotator "RC"]
[ECO "D31"]
[WhiteElo "2179"]
[BlackElo "2001"]
[PlyCount "69"]
[EventDate "2025.03.29"]
[EventType "swiss"]
[EventCountry "GRE"]
[SourceTitle "playchess.com"]
[Source "ChessBase"]
[SourceQuality "1"]
[TimeControl "40/5400+30:1800+30"]

1. d4 {[%emt 0:00:03]} d5 {[%emt 0:00:05]} 2. c4 {[%emt 0:00:10]} e6 {[%emt 0:00:06]} 3. Nc3 {[%emt 0:00:11]} h6 {[%emt 0:00:06]} 4. cxd5 {[%emt 0:02:11]} exd5 {[%emt 0:00:05]} 5. Bf4 {[%emt 0:04:35]} c6 {[%emt 0:00:07]} 6. e3 {[%emt 0:00:48]} Bf5 {[%emt 0:00:36]} 7. g4 {[%emt 0:04:44]} Bh7 {[%emt 0:04:04]} 8. h4 {[%emt 0:01:26]} Bd6 {[%emt 0:11:27]} 9. Nh3 {[%emt 0:01:20]} Ne7 {[%emt 0:03:17]} 10. h5 {[%emt 0:06:27]} Nc8 {[%emt 0:03:23]} 11. Bd3 {[%emt 0:08:03]} Qb6 {[%emt 0:14:42]} 12. O-O {[%emt 0:21:21]} Bxd3 {[%emt 0:03:57]} 13. Qxd3 {[%emt 0:00:10]} Qxb2 {[%emt 0:15:36]} 14. Bxd6 {[%emt 0:06:47]} Nxd6 {[%emt 0:00:24]} 15. Nxd5 {[%emt 0:00:43]} Nb5 {[%emt 0:09:24]} 16. Qe4+ {[%emt 0:07:01]} Kd8 {[%emt 0:07:52]} 17. Qe7+ {[%emt 0:07:24]} Kc8 {[%emt 0:00:04]} 18. Rab1 {[%emt 0:04:24]} Qe2 {[%emt 0:02:12]} 19. f3 {[%emt 0:05:46]} cxd5 {[%emt 0:02:13]} 20. Nf4 {[%emt 0:05:01]} Nc6 {[%emt 0:01:04]} 21. Nxe2 {[%emt 0:03:35]} Nxe7 {[%emt 0:00:06]} 22. Rxb5 {[%emt 0:00:03]} b6 {[%emt 0:01:46]} 23. Nf4 {[%emt 0:01:28]} Rd8 {[%emt 0:00:52]} 24. Kf2 {[%emt 0:00:09]} Kb7 {[%emt 0:01:41]} 25. Ke2 {[%emt 0:01:23]} Rac8 {[%emt 0:01:38]} 26. Kd2 {[%emt 0:00:14]} Rc4 {[%emt 0:02:26]} 27. Rfb1 {[%emt 0:00:20]} Rd6 {[%emt 0:03:52]} 28. R1b2 {[%emt 0:01:55]} Rf6 {[%emt 0:04:16]} 29. Ke2 {[%emt 0:00:34]} Rd6 {[%emt 0:01:12]} 30. Nd3 {[%emt 0:00:22]} a6 {[%emt 0:01:03]} 31. R5b3 {[%emt 0:00:23]} Rc7 {[%emt 0:02:30]} 32. Ne5 {[%emt 0:02:21]} f5 {[%emt 0:01:53]} 33. Nd3 {[%emt 0:03:05]} fxg4 {[%emt 0:00:35]} 34. fxg4 {[%emt 0:00:01]} Ng8 {[%emt 0:01:15]} 35. Ne5 {[%emt 0:01:58]} 1/2-1/2

[Event "European Womens-ch 2025"]
[Site "Rhodes"]
[Date "2025.04.01"]
[Round "2.51"]
[White "Pavlidou, Ekaterini"]
[Black "Kiousi, Panagiota"]
[Result "1/2-1/2"]
[Annotator "RC"]
[ECO "E24"]
[WhiteElo "2160"]
[BlackElo "1998"]
[PlyCount "91"]
[EventDate "2025.03.29"]
[EventType "swiss"]
[EventCountry "GRE"]
[SourceTitle "playchess.com"]
[Source "ChessBase"]
[SourceQuality "1"]
[TimeControl "40/5400+30:1800+30"]

1. d4 {[%emt 0:00:08]} Nf6 {[%emt 0:00:06]} 2. c4 {[%emt 0:00:31]} e6 {[%emt 0:00:08]} 3. Nc3 {[%emt 0:00:18]} Bb4 {[%emt 0:00:12]} 4. a3 {[%emt 0:00:34]} Bxc3+ {[%emt 0:00:05]} 5. bxc3 {[%emt 0:00:08]} b6 {[%emt 0:00:24]} 6. f3 {[%emt 0:01:41]} Nc6 {[%emt 0:00:16]} 7. e4 {[%emt 0:01:48]} Ba6 {[%emt 0:00:04]} 8. Bd3 {[%emt 0:03:48]} Na5 {[%emt 0:00:04]} 9. Ne2 {[%emt 0:04:48]} Bxc4 {[%emt 0:17:33]} 10. Bg5 {[%emt 0:01:17]} h6 {[%emt 0:01:53]} 11. Bh4 {[%emt 0:00:44]} g5 {[%emt 0:05:42]} 12. Bf2 {[%emt 0:04:38]} d5 {[%emt 0:05:51]} 13. O-O {[%emt 0:07:01]} Qd7 {[%emt 0:03:00]} 14. Ng3 {[%emt 0:08:41]} O-O-O {[%emt 0:12:08]} 15. Rb1 {[%emt 0:05:53]} h5 {[%emt 0:04:18]} 16. exd5 {[%emt 0:01:12]} Nxd5 {[%emt 0:00:43]} 17. Bxc4 {[%emt 0:16:10]} Nxc4 {[%emt 0:00:10]} 18. Qd3 {[%emt 0:01:51]} Qc6 {[%emt 0:01:03]} 19. Ne4 {[%emt 0:13:04]} Nf4 {[%emt 0:06:12]} 20. Qd1 {[%emt 0:00:21]} g4 {[%emt 0:05:08]} 21. Re1 {[%emt 0:00:45]} f5 {[%emt 0:09:55]} 22. Ng5 {[%emt 0:02:04]} Rdg8 {[%emt 0:02:41]} 23. Nxe6 {[%emt 0:02:47]} Nxe6 {[%emt 0:12:11]} 24. d5 {[%emt 0:00:02]} Qd7 {[%emt 0:00:19]} 25. dxe6 {[%emt 0:02:22]} Qxd1 {[%emt 0:00:08]} 26. Rbxd1 {[%emt 0:00:08]} gxf3 {[%emt 0:00:40]} 27. g3 {[%emt 0:00:29]} h4 {[%emt 0:02:08]} 28. Rd3 {[%emt 0:01:22]} hxg3 {[%emt 0:07:10]} 29. hxg3 {[%emt 0:00:06]} Nd6 {[%emt 0:01:07]} 30. Rxf3 {[%emt 0:02:11]} Rh3 {[%emt 0:01:05]} 31. Kg2 {[%emt 0:06:43]} Rgh8 {[%emt 0:00:05]} 32. Bg1 {[%emt 0:01:25]} R3h6 {[%emt 0:01:30]} 33. c4 {[%emt 0:06:30]} Re8 {[%emt 0:01:53]} 34. c5 {[%emt 0:00:34]} bxc5 {[%emt 0:00:51]} 35. Bxc5 {[%emt 0:00:03]} Rexe6 {[%emt 0:00:38]} 36. Rxe6 {[%emt 0:00:31]} Rxe6 {[%emt 0:00:02]} 37. Bxd6 {[%emt 0:00:10]} cxd6 {[%emt 0:00:02]} 38. Rxf5 {[%emt 0:00:07]} Kc7 {[%emt 0:00:58]} 39. Rf7+ {[%emt 0:01:02]} Kb6 {[%emt 0:00:05]} 40. Kf3 {[%emt 0:00:00]} d5 {[%emt 0:00:00]} 41. Rd7 {[%emt 0:00:40]} Kc5 {[%emt 0:04:24]} 42. Rxa7 {[%emt 0:04:52]} d4 {[%emt 0:01:30]} 43. g4 {[%emt 0:06:35]} d3 {[%emt 0:01:27]} 44. Rd7 {[%emt 0:01:12]} Kc4 {[%emt 0:00:39]} 45. Kf4 {[%emt 0:02:25]} Kc3 {[%emt 0:01:18]} 46. Rc7+ {[%emt 0:06:45]} 1/2-1/2

[Event "European Womens-ch 2025"]
[Site "Rhodes"]
[Date "2025.04.01"]
[Round "2.52"]
[White "Eric, Jovana"]
[Black "Krkyasharyan, Sona"]
[Result "1/2-1/2"]
[Annotator "RC"]
[ECO "B90"]
[WhiteElo "2147"]
[BlackElo "1989"]
[PlyCount "79"]
[EventDate "2025.03.29"]
[EventType "swiss"]
[EventCountry "GRE"]
[SourceTitle "playchess.com"]
[Source "ChessBase"]
[SourceQuality "1"]
[TimeControl "40/5400+30:1800+30"]

1. e4 {[%emt 0:00:03]} c5 {[%emt 0:00:05]} 2. Nf3 {[%emt 0:00:06]} d6 {[%emt 0:00:05]} 3. d4 {[%emt 0:00:06]} cxd4 {[%emt 0:00:05]} 4. Nxd4 {[%emt 0:00:05]} Nf6 {[%emt 0:00:06]} 5. Nc3 {[%emt 0:00:04]} a6 {[%emt 0:00:04]} 6. h3 {[%emt 0:00:14]} e5 {[%emt 0:00:06]} 7. Nf3 {[%emt 0:00:05]} Be7 {[%emt 0:00:08]} 8. Be3 {[%emt 0:00:18]} b5 {[%emt 0:00:31]} 9. a4 {[%emt 0:01:25]} b4 {[%emt 0:05:46]} 10. Nd5 {[%emt 0:00:40]} Nbd7 {[%emt 0:00:25]} 11. c4 {[%emt 0:04:47]} bxc3 {[%emt 0:02:28]} 12. Nxc3 {[%emt 0:00:06]} Bb7 {[%emt 0:00:47]} 13. Bd3 {[%emt 0:00:47]} d5 {[%emt 0:08:32]} 14. exd5 {[%emt 0:01:40]} Nxd5 {[%emt 0:00:08]} 15. Nxd5 {[%emt 0:06:11]} Bxd5 {[%emt 0:00:37]} 16. O-O {[%emt 0:06:56]} e4 {[%emt 0:11:59]} 17. Bc2 {[%emt 0:00:11]} Nf6 {[%emt 0:00:06]} 18. Nd4 {[%emt 0:06:01]} O-O {[%emt 0:00:26]} 19. Nf5 {[%emt 0:02:43]} Bc4 {[%emt 0:10:09]} 20. Qxd8 {[%emt 0:04:29]} Bxd8 {[%emt 0:00:07]} 21. Rfd1 {[%emt 0:00:04]} Bc7 {[%emt 0:04:25]} 22. Bc5 {[%emt 0:09:09]} Rfe8 {[%emt 0:03:46]} 23. Bd6 {[%emt 0:10:21]} Be6 {[%emt 0:05:25]} 24. Ng3 {[%emt 0:03:02]} Bxd6 {[%emt 0:00:41]} 25. Rxd6 {[%emt 0:00:05]} a5 {[%emt 0:08:02]} 26. Nxe4 {[%emt 0:02:38]} Rab8 {[%emt 0:11:16]} 27. Rd2 {[%emt 0:13:07]} Nxe4 {[%emt 0:02:01]} 28. Bxe4 {[%emt 0:00:05]} Bxh3 {[%emt 0:02:30]} 29. Bc6 {[%emt 0:12:12]} Rec8 {[%emt 0:00:13]} 30. Rad1 {[%emt 0:00:21]} g6 {[%emt 0:03:39]} 31. Bb5 {[%emt 0:00:34]} Be6 {[%emt 0:00:15]} 32. Rd6 {[%emt 0:00:12]} Bc4 {[%emt 0:05:28]} 33. Bxc4 {[%emt 0:06:58]} Rxc4 {[%emt 0:00:07]} 34. Rd8+ {[%emt 0:00:03]} Rxd8 {[%emt 0:00:08]} 35. Rxd8+ {[%emt 0:00:05]} Kg7 {[%emt 0:00:05]} 36. b3 {[%emt 0:00:08]} Rb4 {[%emt 0:01:31]} 37. Rd3 {[%emt 0:00:17]} h5 {[%emt 0:02:07]} 38. f3 {[%emt 0:00:17]} h4 {[%emt 0:05:50]} 39. Kf2 {[%emt 0:02:49]} Kh6 {[%emt 0:03:32]} 40. Ke3 {[%emt 0:00:00]} 1/2-1/2

[Event "European Womens-ch 2025"]
[Site "Rhodes"]
[Date "2025.04.01"]
[Round "2.53"]
[White "Zaksaite, Salomeja"]
[Black "Golsta, Ramona"]
[Result "0-1"]
[Annotator "RC"]
[ECO "B51"]
[WhiteElo "2137"]
[BlackElo "1943"]
[PlyCount "74"]
[EventDate "2025.03.29"]
[EventType "swiss"]
[EventCountry "GRE"]
[SourceTitle "playchess.com"]
[Source "ChessBase"]
[SourceQuality "1"]
[TimeControl "40/5400+30:1800+30"]

1. e4 {[%emt 0:00:04]} c5 {[%emt 0:00:08]} 2. Nf3 {[%emt 0:00:20]} Nc6 {[%emt 0:00:11]} 3. Bb5 {[%emt 0:00:04]} d6 {[%emt 0:00:08]} 4. O-O {[%emt 0:00:06]} Bd7 {[%emt 0:00:12]} 5. Re1 {[%emt 0:00:26]} a6 {[%emt 0:00:12]} 6. Bf1 {[%emt 0:00:05]} Bg4 {[%emt 0:00:10]} 7. c3 {[%emt 0:00:41]} Nf6 {[%emt 0:00:52]} 8. h3 {[%emt 0:00:22]} Bxf3 {[%emt 0:00:12]} 9. Qxf3 {[%emt 0:00:08]} g6 {[%emt 0:00:15]} 10. d3 {[%emt 0:06:57]} Bg7 {[%emt 0:02:41]} 11. Bf4 {[%emt 0:00:18]} Nd7 {[%emt 0:05:37]} 12. Nd2 {[%emt 0:01:25]} O-O {[%emt 0:01:41]} 13. Nc4 {[%emt 0:14:13]} b5 {[%emt 0:07:44]} 14. Ne3 {[%emt 0:00:04]} b4 {[%emt 0:08:55]} 15. Rec1 {[%emt 0:00:11]} a5 {[%emt 0:05:31]} 16. a4 {[%emt 0:00:54]} Rb8 {[%emt 0:09:49]} 17. Nd5 {[%emt 0:06:45]} Nb6 {[%emt 0:09:06]} 18. Qe3 {[%emt 0:03:47]} Re8 {[%emt 0:14:57]} 19. Bg5 {[%emt 0:26:55]} Qd7 {[%emt 0:08:54]} 20. Qd2 {[%emt 0:14:48]} Nxd5 {[%emt 0:02:44]} 21. exd5 {[%emt 0:00:05]} Na7 {[%emt 0:00:14]} 22. d4 {[%emt 0:04:47]} bxc3 {[%emt 0:03:22]} 23. bxc3 {[%emt 0:00:44]} cxd4 {[%emt 0:00:17]} 24. cxd4 {[%emt 0:00:34]} Rb4 {[%emt 0:00:15]} 25. Rc4 {[%emt 0:03:43]} Reb8 {[%emt 0:01:28]} 26. Rac1 {[%emt 0:02:02]} R8b7 {[%emt 0:03:09]} 27. Qc3 {[%emt 0:05:53]} Qxa4 {[%emt 0:05:37]} 28. Rc8+ {[%emt 0:07:36]} Nxc8 {[%emt 0:03:51]} 29. Qxc8+ {[%emt 0:00:02]} Bf8 {[%emt 0:00:06]} 30. Bh6 {[%emt 0:00:59]} Rb8 {[%emt 0:00:09]} 31. Bxf8 {[%emt 0:00:27]} Rxc8 {[%emt 0:01:27]} 32. Rxc8 {[%emt 0:00:02]} Qd7 {[%emt 0:01:49]} 33. Ra8 {[%emt 0:00:03]} h5 {[%emt 0:01:53]} 34. Bxe7+ {[%emt 0:00:25]} Kg7 {[%emt 0:00:15]} 35. Bf8+ {[%emt 0:00:30]} Kh7 {[%emt 0:01:20]} 36. Ra6 {[%emt 0:00:04]} Rb1 {[%emt 0:00:38]} 37. Rc6 {[%emt 0:01:28]} Qe8 {[%emt 0:01:43]} 0-1

[Event "European Womens-ch 2025"]
[Site "Rhodes"]
[Date "2025.04.01"]
[Round "2.54"]
[White "Alexandri, Dimitra"]
[Black "Ciolacu, Alessia-Mihaela"]
[Result "1/2-1/2"]
[Annotator "RC"]
[ECO "D35"]
[WhiteElo "1995"]
[BlackElo "2136"]
[PlyCount "63"]
[EventDate "2025.03.29"]
[EventType "swiss"]
[EventCountry "GRE"]
[SourceTitle "playchess.com"]
[Source "ChessBase"]
[SourceQuality "1"]
[TimeControl "40/5400+30:1800+30"]

1. d4 {[%emt 0:00:03]} Nf6 {[%emt 0:00:38]} 2. c4 {[%emt 0:00:10]} e6 {[%emt 0:00:24]} 3. Nc3 {[%emt 0:00:19]} d5 {[%emt 0:00:17]} 4. cxd5 {[%emt 0:00:30]} exd5 {[%emt 0:00:12]} 5. Bg5 {[%emt 0:00:13]} Bb4 {[%emt 0:00:22]} 6. Qa4+ {[%emt 0:02:15]} Nc6 {[%emt 0:00:20]} 7. e3 {[%emt 0:01:13]} h6 {[%emt 0:00:46]} 8. Bxf6 {[%emt 0:07:04]} Qxf6 {[%emt 0:00:10]} 9. Qb3 {[%emt 0:04:56]} Bxc3+ {[%emt 0:26:34]} 10. bxc3 {[%emt 0:00:42]} Qd6 {[%emt 0:02:35]} 11. Bd3 {[%emt 0:06:49]} O-O {[%emt 0:04:42]} 12. Ne2 {[%emt 0:00:36]} Ne7 {[%emt 0:10:13]} 13. Qb1 {[%emt 0:08:26]} c5 {[%emt 0:03:32]} 14. O-O {[%emt 0:01:03]} Rb8 {[%emt 0:09:16]} 15. a4 {[%emt 0:03:32]} b6 {[%emt 0:01:17]} 16. Ra2 {[%emt 0:13:21]} a6 {[%emt 0:03:16]} 17. Rb2 {[%emt 0:02:22]} Re8 {[%emt 0:06:06]} 18. dxc5 {[%emt 0:21:16]} Qxc5 {[%emt 0:00:24]} 19. Rc1 {[%emt 0:00:23]} Qa5 {[%emt 0:08:56]} 20. c4 {[%emt 0:07:02]} dxc4 {[%emt 0:07:25]} 21. Bxc4 {[%emt 0:00:59]} Bd7 {[%emt 0:00:30]} 22. Qa2 {[%emt 0:01:39]} Rf8 {[%emt 0:00:32]} 23. Ra1 {[%emt 0:03:55]} Nf5 {[%emt 0:06:57]} 24. Rd2 {[%emt 0:04:15]} Bc6 {[%emt 0:00:35]} 25. Nd4 {[%emt 0:01:44]} Bb7 {[%emt 0:01:42]} 26. Nxf5 {[%emt 0:01:56]} Qxf5 {[%emt 0:05:49]} 27. Bd5 {[%emt 0:02:50]} b5 28. e4 {[%emt 0:02:21]} Qf6 {[%emt 0:00:00]} 29. axb5 {[%emt 0:00:30]} axb5 {[%emt 0:00:00]} 30. Rb1 {[%emt 0:03:06]} b4 {[%emt 0:00:05]} 31. Qb2 Qxb2 32. Rdxb2 {[%emt 0:01:00]} 1/2-1/2

[Event "European Womens-ch 2025"]
[Site "Rhodes"]
[Date "2025.04.01"]
[Round "2.55"]
[White "Karadas, Hena"]
[Black "Cornileau, Juliette"]
[Result "0-1"]
[Annotator "RC"]
[ECO "C28"]
[WhiteElo "1931"]
[BlackElo "2130"]
[PlyCount "64"]
[EventDate "2025.03.29"]
[EventType "swiss"]
[EventCountry "GRE"]
[SourceTitle "playchess.com"]
[Source "ChessBase"]
[SourceQuality "1"]
[TimeControl "40/5400+30:1800+30"]

1. e4 {[%emt 1:31:00]} e5 {[%emt 1:31:00]} 2. Nc3 {[%emt 0:00:30]} Nc6 {[%emt 0:00:30]} 3. Bc4 {[%emt 0:00:30]} Nf6 {[%emt 0:00:30]} 4. d3 {[%emt 0:00:30]} Bc5 {[%emt 0:00:30]} 5. h3 h6 {[%emt 0:00:30]} 6. Nge2 Na5 {[%emt 0:00:30]} 7. O-O d6 {[%emt 0:00:30]} 8. a3 Nxc4 {[%emt 0:00:30]} 9. dxc4 a5 {[%emt 0:00:30]} 10. Qd3 Be6 {[%emt 0:00:30]} 11. b3 g5 {[%emt 0:00:30]} 12. Bb2 g4 {[%emt 0:00:30]} 13. h4 {[%emt 0:04:30]} g3 {[%emt 0:00:30]} 14. Qxg3 {[%emt 0:00:30]} Rg8 {[%emt 0:00:30]} 15. Qf3 {[%emt 0:00:30]} Bg4 {[%emt 0:00:30]} 16. Qd3 {[%emt 0:00:30]} Nh5 {[%emt 0:00:30]} 17. b4 {[%emt 0:00:30]} Bd4 {[%emt 0:00:30]} 18. Nxd4 {[%emt 0:00:30]} exd4 {[%emt 0:00:30]} 19. Nd5 {[%emt 0:00:30]} c6 {[%emt 0:00:30]} 20. Qxd4 {[%emt 0:00:30]} cxd5 {[%emt 0:00:30]} 21. exd5 {[%emt 0:00:30]} Kd7 {[%emt 0:00:30]} 22. Rfe1 {[%emt 0:00:30]} Bf3 {[%emt 0:00:30]} 23. g3 {[%emt 0:00:30]} axb4 {[%emt 0:00:30]} 24. c5 {[%emt 0:00:30]} bxa3 {[%emt 0:00:30]} 25. Bxa3 {[%emt 0:00:30]} Qf6 {[%emt 0:00:30]} 26. Qd3 {[%emt 0:00:30]} Nxg3 {[%emt 0:00:30]} 27. Qb5+ {[%emt 0:00:30]} Kd8 {[%emt 0:00:30]} 28. Qb6+ {[%emt 0:00:30]} Kc8 {[%emt 0:00:30]} 29. fxg3 {[%emt 0:00:30]} Rxg3+ {[%emt 0:00:30]} 30. Kf2 {[%emt 0:00:30]} Be4+ {[%emt 0:00:30]} 31. Ke2 {[%emt 0:00:30]} Qf3+ {[%emt 0:00:30]} 32. Kd2 {[%emt 0:00:30]} Qc3+ {[%emt 0:00:30]} 0-1

[Event "European Womens-ch 2025"]
[Site "Rhodes"]
[Date "2025.04.01"]
[Round "2.56"]
[White "Dicen, Elis Denele"]
[Black "Alexandri, Vasiliki"]
[Result "1/2-1/2"]
[Annotator "RC"]
[ECO "A62"]
[WhiteElo "2129"]
[BlackElo "1927"]
[PlyCount "78"]
[EventDate "2025.03.29"]
[EventType "swiss"]
[EventCountry "GRE"]
[SourceTitle "playchess.com"]
[Source "ChessBase"]
[SourceQuality "1"]
[TimeControl "40/5400+30:1800+30"]

1. d4 {[%emt 0:00:05]} Nf6 {[%emt 0:00:09]} 2. c4 {[%emt 0:00:07]} e6 {[%emt 0:00:05]} 3. g3 {[%emt 0:00:06]} c5 {[%emt 0:00:10]} 4. d5 {[%emt 0:00:08]} d6 {[%emt 0:00:11]} 5. Nc3 {[%emt 0:00:25]} exd5 {[%emt 0:00:10]} 6. cxd5 {[%emt 0:00:08]} g6 {[%emt 0:00:08]} 7. Bg2 {[%emt 0:00:27]} Bg7 {[%emt 0:00:13]} 8. Nf3 {[%emt 0:00:22]} O-O {[%emt 0:00:12]} 9. O-O {[%emt 0:00:08]} Re8 {[%emt 0:00:33]} 10. Nd2 {[%emt 0:05:14]} a6 {[%emt 0:02:50]} 11. a4 {[%emt 0:01:28]} Ng4 {[%emt 0:09:18]} 12. e4 {[%emt 0:07:16]} Ne5 {[%emt 0:02:33]} 13. Qc2 {[%emt 0:10:51]} Nbd7 {[%emt 0:05:40]} 14. f4 {[%emt 0:05:41]} Ng4 {[%emt 0:00:15]} 15. Nc4 {[%emt 0:02:05]} Nb6 {[%emt 0:02:49]} 16. Nxb6 {[%emt 0:07:58]} Qxb6 {[%emt 0:00:10]} 17. h3 {[%emt 0:02:04]} c4+ {[%emt 0:06:09]} 18. Kh1 {[%emt 0:00:11]} Ne3 {[%emt 0:00:47]} 19. Qf2 {[%emt 0:06:37]} Bd4 {[%emt 0:01:15]} 20. Bxe3 {[%emt 0:00:20]} Bxe3 {[%emt 0:00:11]} 21. Qe2 {[%emt 0:00:17]} Bd7 {[%emt 0:08:29]} 22. f5 {[%emt 0:10:18]} Rac8 {[%emt 0:04:41]} 23. Rae1 {[%emt 0:04:34]} Bh6 {[%emt 0:02:40]} 24. Qf3 {[%emt 0:05:42]} Re7 {[%emt 0:09:46]} 25. Re2 {[%emt 0:04:11]} Qd4 {[%emt 0:02:34]} 26. e5 {[%emt 0:08:46]} Bxf5 {[%emt 0:09:14]} 27. exd6 {[%emt 0:01:56]} Rxe2 {[%emt 0:03:46]} 28. Nxe2 {[%emt 0:03:02]} Qd3 {[%emt 0:04:56]} 29. Qf2 {[%emt 0:03:54]} Rf8 {[%emt 0:01:50]} 30. Nf4 {[%emt 0:01:59]} Qc2 {[%emt 0:02:49]} 31. Qb6 {[%emt 0:02:19]} Qxa4 {[%emt 0:03:48]} 32. Qxb7 {[%emt 0:00:55]} Qb5 {[%emt 0:03:04]} 33. Qe7 {[%emt 0:02:44]} Re8 {[%emt 0:02:54]} 34. Qc7 {[%emt 0:00:54]} Rc8 {[%emt 0:05:31]} 35. Qe7 {[%emt 0:01:01]} Bf8 {[%emt 0:01:59]} 36. Qf6 {[%emt 0:00:49]} Bg7 {[%emt 0:00:32]} 37. Qe7 {[%emt 0:00:18]} Re8 {[%emt 0:01:49]} 38. Qc7 {[%emt 0:00:34]} Rc8 {[%emt 0:02:20]} 39. Qe7 {[%emt 0:00:46]} Re8 {[%emt 0:00:13]} 1/2-1/2

[Event "European Womens-ch 2025"]
[Site "Rhodes"]
[Date "2025.04.01"]
[Round "2.57"]
[White "Nenova, Andzhelika"]
[Black "Nadzamova, Viktoria"]
[Result "1-0"]
[Annotator "RC"]
[ECO "B32"]
[WhiteElo "1903"]
[BlackElo "2122"]
[PlyCount "93"]
[EventDate "2025.03.29"]
[EventType "swiss"]
[EventCountry "GRE"]
[SourceTitle "playchess.com"]
[Source "ChessBase"]
[SourceQuality "1"]
[TimeControl "40/5400+30:1800+30"]

1. e4 {[%emt 0:00:05]} c5 {[%emt 0:00:11]} 2. Nf3 {[%emt 0:00:17]} Nc6 {[%emt 0:00:19]} 3. Nc3 {[%emt 0:00:17]} d6 {[%emt 0:00:52]} 4. d4 {[%emt 0:01:42]} cxd4 {[%emt 0:00:09]} 5. Nxd4 {[%emt 0:00:05]} e5 {[%emt 0:01:57]} 6. Ndb5 {[%emt 0:00:39]} a6 {[%emt 0:00:36]} 7. Na3 {[%emt 0:00:09]} b5 {[%emt 0:01:03]} 8. Nd5 {[%emt 0:00:10]} Nge7 {[%emt 0:02:19]} 9. Bg5 {[%emt 0:01:22]} h6 {[%emt 0:01:30]} 10. Qh5 {[%emt 0:12:33]} Be6 {[%emt 0:07:19]} 11. O-O-O {[%emt 0:03:05]} Bxd5 {[%emt 0:07:38]} 12. exd5 {[%emt 0:00:17]} Na5 {[%emt 0:04:33]} 13. Nxb5 {[%emt 0:24:17]} Qd7 {[%emt 0:04:16]} 14. Bxe7 {[%emt 0:07:30]} Bxe7 {[%emt 0:01:18]} 15. Nc3 {[%emt 0:01:14]} O-O {[%emt 0:00:40]} 16. h4 {[%emt 0:06:42]} Rfc8 {[%emt 0:15:24]} 17. Bd3 {[%emt 0:01:07]} Qb7 {[%emt 0:00:56]} 18. Ne4 {[%emt 0:03:22]} Rab8 {[%emt 0:04:05]} 19. b3 {[%emt 0:04:26]} Qb4 {[%emt 0:00:32]} 20. Rh3 {[%emt 0:10:40]} Qa3+ {[%emt 0:01:43]} 21. Kd2 {[%emt 0:00:15]} Qxa2 {[%emt 0:00:28]} 22. Rg3 {[%emt 0:04:47]} Kf8 {[%emt 0:05:01]} 23. Rf3 {[%emt 0:01:29]} Ke8 {[%emt 0:04:28]} 24. Qxf7+ {[%emt 0:04:42]} Kd8 {[%emt 0:00:13]} 25. Ke1 {[%emt 0:00:55]} Nb7 {[%emt 0:00:43]} 26. Qg8+ {[%emt 0:01:10]} Kd7 {[%emt 0:06:49]} 27. Qe6+ {[%emt 0:00:12]} Kd8 {[%emt 0:00:20]} 28. Rf7 {[%emt 0:00:32]} Qa5+ {[%emt 0:00:33]} 29. Kf1 {[%emt 0:00:17]} Qc7 {[%emt 0:00:15]} 30. Rxg7 {[%emt 0:00:36]} Qd7 {[%emt 0:00:07]} 31. Qxd7+ {[%emt 0:02:12]} Kxd7 {[%emt 0:00:07]} 32. Nf6+ {[%emt 0:00:21]} Kd8 {[%emt 0:00:07]} 33. Ng8 {[%emt 0:00:55]} Bxh4 {[%emt 0:01:36]} 34. Nxh6 {[%emt 0:01:06]} Bf6 {[%emt 0:00:24]} 35. Rf7 {[%emt 0:00:49]} Bg5 {[%emt 0:00:22]} 36. Rh7 {[%emt 0:00:08]} Bxh6 {[%emt 0:00:46]} 37. Rxh6 {[%emt 0:00:08]} Ke7 {[%emt 0:00:03]} 38. Rh7+ {[%emt 0:00:34]} Kf6 {[%emt 0:00:08]} 39. Rxb7 {[%emt 0:00:35]} Rxb7 {[%emt 0:00:19]} 40. Bxa6 {[%emt 0:00:00]} Rbc7 {[%emt 0:00:00]} 41. Bxc8 {[%emt 0:00:13]} Rxc8 {[%emt 0:00:14]} 42. c4 {[%emt 0:00:36]} e4 {[%emt 0:00:08]} 43. Ke2 {[%emt 0:00:06]} Ke5 {[%emt 0:00:06]} 44. Ke3 {[%emt 0:02:48]} Rg8 {[%emt 0:00:48]} 45. Rd4 {[%emt 0:05:20]} Rxg2 {[%emt 0:01:02]} 46. Rxe4+ {[%emt 0:00:15]} Kf5 {[%emt 0:00:05]} 47. Re6 {[%emt 0:00:32]} 1-0

[Event "European Womens-ch 2025"]
[Site "Rhodes"]
[Date "2025.04.01"]
[Round "2.58"]
[White "Berke, Ana"]
[Black "Kalyva, Kyriaki"]
[Result "1-0"]
[Annotator "NA RC"]
[ECO "B30"]
[WhiteElo "2119"]
[BlackElo "1885"]
[PlyCount "53"]
[EventDate "2025.03.29"]
[EventType "swiss"]
[EventCountry "GRE"]
[SourceTitle "playchess.com"]
[Source "ChessBase"]
[SourceQuality "1"]
[TimeControl "40/5400+30:1800+30"]

1. e4 {[%emt 0:00:04]} c5 {[%emt 0:00:04]} 2. Nf3 {[%emt 0:00:06]} Nc6 {[%emt 0:00:04]} 3. Bb5 {[%emt 0:00:05]} e6 {[%emt 0:00:05]} 4. Bxc6 {[%emt 0:00:11]} bxc6 {[%emt 0:00:08]} 5. O-O {[%emt 0:00:29]} Ne7 {[%emt 0:00:28]} 6. h4 {[%emt 0:00:58]} d6 {[%emt 0:07:08]} 7. e5 {[%emt 0:04:13]} Ng6 {[%emt 0:09:52]} 8. g3 {[%emt 0:03:28]} f6 {[%emt 0:10:11]} 9. h5 {[%emt 0:18:23]} Nxe5 {[%emt 0:01:24]} 10. Nxe5 {[%emt 0:00:23]} fxe5 {[%emt 0:00:22]} 11. d3 {[%emt 0:06:11]} Be7 {[%emt 0:05:22]} 12. Qf3 {[%emt 0:02:57]} Kd7 {[%emt 0:17:06]} 13. Nc3 {[%emt 0:05:23]} Qf8 {[%emt 0:00:53]} 14. Qe2 {[%emt 0:02:23]} g6 {[%emt 0:09:30]} 15. f4 {[%emt 0:03:41]} exf4 {[%emt 0:01:07]} 16. Bxf4 {[%emt 0:01:40]} Qe8 {[%emt 0:02:35]} 17. Ne4 {[%emt 0:03:00]} g5 {[%emt 0:15:30]} 18. Bxd6 {[%emt 0:01:19]} Rf8 {[%emt 0:03:57]} 19. Bxc5 {[%emt 0:00:53]} Rf5 {[%emt 0:01:50]} 20. Bxe7 {[%emt 0:03:17]} Qxe7 {[%emt 0:00:14]} 21. Rae1 {[%emt 0:01:32]} Kc7 {[%emt 0:04:04]} 22. d4 {[%emt 0:01:33]} Rxf1+ {[%emt 0:00:53]} 23. Rxf1 {[%emt 0:00:21]} Bd7 {[%emt 0:00:15]} 24. Nc5 {[%emt 0:01:12]} Rf8 {[%emt 0:03:37]} 25. Qe5+ {[%emt 0:00:29]} Kc8 {[%emt 0:00:26]} 26. Rxf8+ {[%emt 0:00:19]} Qxf8 {[%emt 0:00:05]} 27. Qb8+ {[%emt 0:00:18]} 1-0